[Event "*** Titled Tuesday 3|2 Blitz"]
[Site "Chess.com"]
[Date "2016.09.06"]
[Round "6"]
[White "VMikhalevski"]
[Black "dusanacns"]
[Result "0-1"]
[WhiteElo "2433"]
[BlackElo "2548"]
[TimeControl "180+2"]
[EndTime "12:15:09 PDT"]
[Termination "dusanacns won by resignation"]

1. c4 {[%clk 0:03:01.9]} 1... g6 {[%clk 0:03:00.4]} 2. g3 {[%clk 0:02:59.7]}
2... Bg7 {[%clk 0:03:02.1]} 3. Bg2 {[%clk 0:03:01.4]} 3... d6 {[%clk 0:03:03.8]}
4. Nc3 {[%clk 0:03:01.3]} 4... e5 {[%clk 0:03:05.3]} 5. Nf3 {[%clk 0:03:01.7]}
5... Nd7 {[%clk 0:03:05.4]} 6. O-O {[%clk 0:03:02.4]} 6... Ne7 {[%clk
0:03:06.3]} 7. d4 {[%clk 0:03:02.1]} 7... O-O {[%clk 0:03:07.4]} 8. b3 {[%clk
0:02:56.4]} 8... Nc6 {[%clk 0:03:07.2]} 9. e3 {[%clk 0:02:52.4]} 9... Re8 {[%clk
0:03:05.4]} 10. Bb2 {[%clk 0:02:52.3]} 10... e4 {[%clk 0:03:04.1]} 11. Nd2
{[%clk 0:02:47.4]} 11... f5 {[%clk 0:03:05.5]} 12. a3 {[%clk 0:02:40.1]} 12...
Nf6 {[%clk 0:03:05]} 13. b4 {[%clk 0:02:40]} 13... g5 {[%clk 0:03:05.2]} 14. b5
{[%clk 0:02:38.3]} 14... Ne7 {[%clk 0:03:06.4]} 15. f3 {[%clk 0:02:34]} 15...
exf3 {[%clk 0:03:05.9]} 16. Nxf3 {[%clk 0:02:34.2]} 16... h6 {[%clk 0:03:02.2]}
17. Qd3 {[%clk 0:02:24.8]} 17... d5 {[%clk 0:02:43.2]} 18. Ne5 {[%clk
0:02:14.6]} 18... Be6 {[%clk 0:02:44.4]} 19. c5 {[%clk 0:02:11.3]} 19... Ne4
{[%clk 0:02:41.5]} 20. Nxe4 {[%clk 0:01:56.1]} 20... dxe4 {[%clk 0:02:41.1]} 21.
Qe2 {[%clk 0:01:56.9]} 21... g4 {[%clk 0:02:34.4]} 22. d5 {[%clk 0:01:28.8]}
22... Nxd5 {[%clk 0:02:23.2]} 23. Rad1 {[%clk 0:01:28.2]} 23... Qg5 {[%clk
0:02:23.8]} 24. c6 {[%clk 0:01:25.7]} 24... bxc6 {[%clk 0:02:21.6]} 25. Rfe1
{[%clk 0:00:53.8]} 25... cxb5 {[%clk 0:02:15.1]} 26. Bd4 {[%clk 0:00:39.2]}
26... c5 {[%clk 0:02:12.1]} 27. Ba1 {[%clk 0:00:33.3]} 27... a6 {[%clk
0:02:08.9]} 28. Nc6 {[%clk 0:00:22.1]} 28... Bxa1 {[%clk 0:02:02.3]} 29. Rxa1
{[%clk 0:00:22.9]} 29... Rac8 {[%clk 0:02:02.9]} 30. Na5 {[%clk 0:00:22]} 30...
Qd8 {[%clk 0:01:40.6]} 31. Nb3 {[%clk 0:00:21.9]} 31... Nc3 {[%clk 0:01:41.7]}
32. Qb2 {[%clk 0:00:22.3]} 32... Qd3 {[%clk 0:01:22]} 33. Nc1 {[%clk 0:00:14.1]}
33... Qc4 {[%clk 0:01:15.4]} 34. Bf1 {[%clk 0:00:14.8]} 34... Na4 {[%clk
0:01:01.3]} 35. Qf6 {[%clk 0:00:14.9]} 35... Qc3 {[%clk 0:01:02.8]} 36. Qxh6
{[%clk 0:00:10.6]} 36... Qxa1 {[%clk 0:00:59.5]} 0-1

[Event "*** Titled Tuesday 3|2 Blitz"]
[Site "Chess.com"]
[Date "2016.09.06"]
[Round "6"]
[White "roldieyi"]
[Black "FearlessKing64"]
[Result "1/2-1/2"]
[WhiteElo "2227"]
[BlackElo "2317"]
[TimeControl "180+2"]
[EndTime "12:15:09 PDT"]
[Termination "Game drawn by repetition"]

1. d4 {[%clk 0:03:01.1]} 1... Nf6 {[%clk 0:03:00.4]} 2. Nf3 {[%clk 0:03:01.9]}
2... g6 {[%clk 0:03:01.6]} 3. c4 {[%clk 0:03:02.9]} 3... Bg7 {[%clk 0:03:02.8]}
4. Nc3 {[%clk 0:03:03.8]} 4... d5 {[%clk 0:03:04.1]} 5. cxd5 {[%clk 0:03:03.4]}
5... Nxd5 {[%clk 0:03:05.2]} 6. e3 {[%clk 0:03:03.1]} 6... O-O {[%clk
0:03:05.4]} 7. Bc4 {[%clk 0:03:03.9]} 7... Nb6 {[%clk 0:03:06.3]} 8. Bb3 {[%clk
0:03:04.7]} 8... Nc6 {[%clk 0:03:06.4]} 9. O-O {[%clk 0:03:05.1]} 9... e5 {[%clk
0:02:58.2]} 10. dxe5 {[%clk 0:03:04.3]} 10... Nxe5 {[%clk 0:02:55.4]} 11. Nxe5
{[%clk 0:03:04.7]} 11... Bxe5 {[%clk 0:02:55.1]} 12. Qf3 {[%clk 0:03:00.2]}
12... Qf6 {[%clk 0:02:49.8]} 13. Qe2 {[%clk 0:02:39]} 13... Be6 {[%clk
0:02:40.9]} 14. Ne4 {[%clk 0:02:34.8]} 14... Qe7 {[%clk 0:02:39.3]} 15. Bxe6
{[%clk 0:02:20.6]} 15... Qxe6 {[%clk 0:02:38.4]} 16. Nc5 {[%clk 0:02:13.5]}
16... Bxh2+ {[%clk 0:02:29.5]} 17. Kxh2 {[%clk 0:02:09.1]} 17... Qd6+ {[%clk
0:02:19]} 18. Kg1 {[%clk 0:02:08.9]} 18... Qxc5 {[%clk 0:02:19.8]} 19. Bd2
{[%clk 0:02:10.5]} 19... Rad8 {[%clk 0:02:14.9]} 20. Bc3 {[%clk 0:02:10.9]}
20... Qe7 {[%clk 0:02:09.8]} 21. Rad1 {[%clk 0:02:01.7]} 21... Nd5 {[%clk
0:02:06.2]} 22. Bd2 {[%clk 0:01:36.4]} 22... Nf4 {[%clk 0:02:00.9]} 23. Qf3
{[%clk 0:01:35.1]} 23... Nd5 {[%clk 0:01:50.7]} 24. Rfe1 {[%clk 0:01:28.1]}
24... c6 {[%clk 0:01:46.5]} 25. a3 {[%clk 0:01:25.6]} 25... Qf6 {[%clk
0:01:46.7]} 26. Ba5 {[%clk 0:01:16.5]} 26... Qxf3 {[%clk 0:01:42.6]} 27. gxf3
{[%clk 0:01:16.4]} 27... b6 {[%clk 0:01:35.4]} 28. Bd2 {[%clk 0:01:16.6]} 28...
Rd7 {[%clk 0:01:28]} 29. e4 {[%clk 0:01:17.4]} 29... Nf6 {[%clk 0:01:26.1]} 30.
Bg5 {[%clk 0:01:16.7]} 30... Rxd1 {[%clk 0:01:18.9]} 31. Rxd1 {[%clk 0:01:18.6]}
31... Kg7 {[%clk 0:01:17.8]} 32. Rd6 {[%clk 0:01:18.9]} 32... Nh5 {[%clk
0:01:04.3]} 33. Rxc6 {[%clk 0:01:16.8]} 33... h6 {[%clk 0:01:05.7]} 34. Be3
{[%clk 0:01:15.4]} 34... Ra8 {[%clk 0:00:59.9]} 35. Rc7 {[%clk 0:01:13.3]} 35...
Kf8 {[%clk 0:00:53.8]} 36. Bxh6+ {[%clk 0:01:12.8]} 36... Ke8 {[%clk 0:00:55.2]}
37. Be3 {[%clk 0:01:10.9]} 37... Ng7 {[%clk 0:00:56]} 38. f4 {[%clk 0:01:03.1]}
38... Ne6 {[%clk 0:00:56.8]} 39. Rb7 {[%clk 0:01:02.6]} 39... Nd8 {[%clk
0:00:57.7]} 40. Rc7 {[%clk 0:01:00.1]} 40... Ne6 {[%clk 0:00:58.2]} 41. Rb7
{[%clk 0:01:00.7]} 41... Nd8 {[%clk 0:00:59.1]} 42. Rc7 {[%clk 0:01:00.4]} 42...
Ne6 {[%clk 0:00:57.6]} 1/2-1/2

[Event "*** Titled Tuesday 3|2 Blitz"]
[Site "Chess.com"]
[Date "2016.09.06"]
[Round "6"]
[White "NTBT_DHS"]
[Black "nihalsarin"]
[Result "0-1"]
[WhiteElo "2517"]
[BlackElo "2413"]
[TimeControl "180+2"]
[EndTime "12:15:12 PDT"]
[Termination "nihalsarin won by resignation"]

1. d4 {[%clk 0:02:56.6]} 1... e6 {[%clk 0:02:59.8]} 2. c4 {[%clk 0:02:56.7]}
2... Nf6 {[%clk 0:03:00.4]} 3. Nc3 {[%clk 0:02:58.2]} 3... Bb4 {[%clk
0:03:00.8]} 4. e3 {[%clk 0:02:59.8]} 4... O-O {[%clk 0:02:58.3]} 5. Ne2 {[%clk
0:03:01]} 5... c6 {[%clk 0:02:59.5]} 6. g3 {[%clk 0:03:01.9]} 6... d5 {[%clk
0:03:00]} 7. cxd5 {[%clk 0:03:03]} 7... exd5 {[%clk 0:03:00.4]} 8. Bg2 {[%clk
0:03:04.4]} 8... Re8 {[%clk 0:03:01.2]} 9. Qc2 {[%clk 0:03:05.4]} 9... Nbd7
{[%clk 0:02:58.1]} 10. O-O {[%clk 0:03:06.5]} 10... Nf8 {[%clk 0:02:58.9]} 11.
a3 {[%clk 0:03:08]} 11... Bd6 {[%clk 0:02:59.7]} 12. b4 {[%clk 0:03:09.4]} 12...
a6 {[%clk 0:02:53.5]} 13. Bb2 {[%clk 0:03:06]} 13... g6 {[%clk 0:02:46.6]} 14.
Rfc1 {[%clk 0:02:48]} 14... Bf5 {[%clk 0:02:43.8]} 15. Qb3 {[%clk 0:02:49.3]}
15... h5 {[%clk 0:02:35.6]} 16. a4 {[%clk 0:02:41.2]} 16... h4 {[%clk
0:02:13.5]} 17. b5 {[%clk 0:02:41.8]} 17... axb5 {[%clk 0:02:14.6]} 18. axb5
{[%clk 0:02:42.6]} 18... Rxa1 {[%clk 0:02:15.5]} 19. Rxa1 {[%clk 0:02:43.7]}
19... N8h7 {[%clk 0:02:03.3]} 20. bxc6 {[%clk 0:02:24.6]} 20... bxc6 {[%clk
0:02:02.8]} 21. Ra6 {[%clk 0:02:26]} 21... Bd7 {[%clk 0:01:57.8]} 22. Nxd5
{[%clk 0:02:16.6]} 22... Nxd5 {[%clk 0:01:41.4]} 23. Bxd5 {[%clk 0:02:15.2]}
23... Ng5 {[%clk 0:01:24.7]} 24. Bg2 {[%clk 0:02:06.3]} 24... Bg4 {[%clk
0:01:11.9]} 25. Nf4 {[%clk 0:01:42]} 25... Bxf4 {[%clk 0:00:53.5]} 26. gxf4
{[%clk 0:01:41.6]} 26... Nf3+ {[%clk 0:00:52.1]} 27. Kh1 {[%clk 0:01:41.8]}
27... h3 {[%clk 0:00:46.4]} 28. Bf1 {[%clk 0:01:43]} 28... Nd2 {[%clk
0:00:45.9]} 29. Qd3 {[%clk 0:01:37.5]} 29... Bf3+ {[%clk 0:00:45.2]} 30. Kg1
{[%clk 0:01:38.3]} 30... Qc8 {[%clk 0:00:43.8]} 31. f5 {[%clk 0:01:36]} 31...
Qd8 {[%clk 0:00:42.2]} 32. f6 {[%clk 0:01:25.6]} 32... Qc8 {[%clk 0:00:39.3]}
33. Qxd2 {[%clk 0:00:18.5]} 33... Qg4+ {[%clk 0:00:38.3]} 0-1

[Event "*** Titled Tuesday 3|2 Blitz"]
[Site "Chess.com"]
[Date "2016.09.06"]
[Round "6"]
[White "Krutoy123"]
[Black "Anton_Demchenko"]
[Result "1-0"]
[WhiteElo "2445"]
[BlackElo "2595"]
[TimeControl "180+2"]
[EndTime "12:15:35 PDT"]
[Termination "Krutoy123 won by resignation"]

1. e4 {[%clk 0:03:00.4]} 1... e5 {[%clk 0:03:00]} 2. Nf3 {[%clk 0:03:00.2]} 2...
Nc6 {[%clk 0:03:01.5]} 3. Bc4 {[%clk 0:03:00.3]} 3... Bc5 {[%clk 0:03:00.6]} 4.
O-O {[%clk 0:03:00.4]} 4... Nf6 {[%clk 0:03:00.8]} 5. d3 {[%clk 0:03:01.5]} 5...
d6 {[%clk 0:03:01.6]} 6. c3 {[%clk 0:03:01.7]} 6... Bb6 {[%clk 0:03:00.6]} 7. a4
{[%clk 0:03:01.8]} 7... a6 {[%clk 0:03:00.3]} 8. Nbd2 {[%clk 0:03:00.4]} 8...
O-O {[%clk 0:03:00.7]} 9. Bb3 {[%clk 0:02:59.2]} 9... Ba7 {[%clk 0:02:57.3]} 10.
Nc4 {[%clk 0:02:55.3]} 10... Ne7 {[%clk 0:02:56.2]} 11. Re1 {[%clk 0:02:52.2]}
11... Ng6 {[%clk 0:02:56.9]} 12. d4 {[%clk 0:02:48]} 12... Qe7 {[%clk
0:02:55.5]} 13. Ne3 {[%clk 0:02:45.5]} 13... c6 {[%clk 0:02:22.8]} 14. Nf5
{[%clk 0:02:42.7]} 14... Qd8 {[%clk 0:02:18.8]} 15. Bg5 {[%clk 0:02:32]} 15...
h6 {[%clk 0:02:18.8]} 16. dxe5 {[%clk 0:02:32.2]} 16... hxg5 {[%clk 0:01:48.4]}
17. exf6 {[%clk 0:02:33]} 17... Qxf6 {[%clk 0:01:50.3]} 18. Qxd6 {[%clk
0:02:32.7]} 18... Bxf5 {[%clk 0:01:50.8]} 19. Qxf6 {[%clk 0:02:32.1]} 19... gxf6
{[%clk 0:01:51.7]} 20. exf5 {[%clk 0:02:33.7]} 20... Nf4 {[%clk 0:01:53.1]} 21.
Rad1 {[%clk 0:02:29.7]} 21... Rad8 {[%clk 0:01:49]} 22. Bc2 {[%clk 0:02:20.6]}
22... a5 {[%clk 0:01:45.1]} 23. Nd2 {[%clk 0:02:07.4]} 23... Kg7 {[%clk
0:01:42.7]} 24. Ne4 {[%clk 0:01:59.5]} 24... Rd5 {[%clk 0:01:36.4]} 25. g3
{[%clk 0:01:57.5]} 25... Nh3+ {[%clk 0:01:21.3]} 26. Kg2 {[%clk 0:01:58.3]}
26... Rh8 {[%clk 0:01:07.9]} 27. f3 {[%clk 0:01:10]} 27... Rxf5 {[%clk
0:00:40.7]} 28. Nd6 {[%clk 0:01:09.8]} 28... Rd5 {[%clk 0:00:34.3]} 29. Nf5+
{[%clk 0:00:55.3]} 29... Kf8 {[%clk 0:00:34]} 30. Rxd5 {[%clk 0:00:55.4]} 30...
cxd5 {[%clk 0:00:35.3]} 31. Re7 {[%clk 0:00:49.6]} 31... g4 {[%clk 0:00:28.2]}
32. fxg4 {[%clk 0:00:35.3]} 32... Nf2 {[%clk 0:00:22]} 33. Rxb7 {[%clk
0:00:34.3]} 33... Nxg4 {[%clk 0:00:23.1]} 34. Rxa7 {[%clk 0:00:32]} 34... Rxh2+
{[%clk 0:00:24]} 35. Kg1 {[%clk 0:00:32.1]} 35... Ke8 {[%clk 0:00:19.8]} 36.
Nd6+ {[%clk 0:00:33]} 36... Kd8 {[%clk 0:00:19.5]} 37. Bf5 {[%clk 0:00:33.6]}
1-0

[Event "*** Titled Tuesday 3|2 Blitz"]
[Site "Chess.com"]
[Date "2016.09.06"]
[Round "6"]
[White "nonscitis"]
[Black "LuckyTiger"]
[Result "1-0"]
[WhiteElo "2357"]
[BlackElo "2519"]
[TimeControl "180+2"]
[EndTime "12:16:05 PDT"]
[Termination "nonscitis won by checkmate"]

1. e4 {[%clk 0:03:02]} 1... e6 {[%clk 0:03:00]} 2. d4 {[%clk 0:03:01.1]} 2... d5
{[%clk 0:03:01.5]} 3. Nd2 {[%clk 0:02:59.1]} 3... Nc6 {[%clk 0:03:00.9]} 4. Ngf3
{[%clk 0:02:51.2]} 4... Nf6 {[%clk 0:03:02]} 5. e5 {[%clk 0:02:49.8]} 5... Nd7
{[%clk 0:03:03.5]} 6. c3 {[%clk 0:02:47.9]} 6... f6 {[%clk 0:02:55.4]} 7. exf6
{[%clk 0:02:48.6]} 7... Nxf6 {[%clk 0:02:57.3]} 8. Bd3 {[%clk 0:02:49.4]} 8...
Bd6 {[%clk 0:02:58.6]} 9. Nf1 {[%clk 0:02:49.9]} 9... O-O {[%clk 0:02:57.1]} 10.
Ng3 {[%clk 0:02:46]} 10... e5 {[%clk 0:02:48.5]} 11. dxe5 {[%clk 0:02:46]} 11...
Nxe5 {[%clk 0:02:50.4]} 12. Nxe5 {[%clk 0:02:46.4]} 12... Bxe5 {[%clk
0:02:52.3]} 13. O-O {[%clk 0:02:45.7]} 13... c6 {[%clk 0:02:50.8]} 14. Bg5
{[%clk 0:02:37.7]} 14... h6 {[%clk 0:02:34.7]} 15. Be3 {[%clk 0:02:35]} 15...
Ng4 {[%clk 0:02:02]} 16. Bd4 {[%clk 0:01:37.1]} 16... Qg5 {[%clk 0:00:32.7]} 17.
Bxe5 {[%clk 0:01:20.9]} 17... Nxe5 {[%clk 0:00:33.2]} 18. Be2 {[%clk 0:01:08.7]}
18... Bd7 {[%clk 0:00:33.7]} 19. Qc1 {[%clk 0:01:08.6]} 19... Rf4 {[%clk
0:00:33.9]} 20. Nh5 {[%clk 0:00:52.3]} 20... Ng6 {[%clk 0:00:16]} 21. Nxf4
{[%clk 0:00:25.4]} 21... Nxf4 {[%clk 0:00:17.9]} 22. Bf3 {[%clk 0:00:23.7]}
22... Rf8 {[%clk 0:00:19.4]} 23. Kh1 {[%clk 0:00:20.9]} 23... Bg4 {[%clk
0:00:16.6]} 24. Rg1 {[%clk 0:00:15.9]} 24... Bxf3 {[%clk 0:00:11.2]} 25. gxf3
{[%clk 0:00:16.7]} 25... Qh5 {[%clk 0:00:09.7]} 26. Qe3 {[%clk 0:00:14.4]} 26...
Kh7 {[%clk 0:00:04.4]} 27. Rg3 {[%clk 0:00:15.1]} 27... g5 {[%clk 0:00:05.1]}
28. Re1 {[%clk 0:00:12.9]} 28... Rf7 {[%clk 0:00:06.2]} 29. Qe8 {[%clk
0:00:11.4]} 29... Qg6 {[%clk 0:00:06.6]} 30. Re7 {[%clk 0:00:10.9]} 30... Rxe7
{[%clk 0:00:05.2]} 31. Qxe7+ {[%clk 0:00:11.7]} 31... Kg8 {[%clk 0:00:06.9]} 32.
Rg1 {[%clk 0:00:10.4]} 32... Qd3 {[%clk 0:00:06.9]} 33. Qe3 {[%clk 0:00:11]}
33... Qf5 {[%clk 0:00:07.8]} 34. Re1 {[%clk 0:00:11.3]} 34... Qh3 {[%clk
0:00:08.6]} 35. Qe8+ {[%clk 0:00:11.6]} 35... Kg7 {[%clk 0:00:09.7]} 36. Re7+
{[%clk 0:00:12]} 36... Kf6 {[%clk 0:00:10.9]} 37. Qf7# {[%clk 0:00:12.9]} 1-0

[Event "*** Titled Tuesday 3|2 Blitz"]
[Site "Chess.com"]
[Date "2016.09.06"]
[Round "6"]
[White "Generalas"]
[Black "Makalexa"]
[Result "0-1"]
[WhiteElo "2158"]
[BlackElo "2164"]
[TimeControl "180+2"]
[EndTime "12:17:37 PDT"]
[Termination "Makalexa won by resignation"]

1. Nf3 {[%clk 0:03:02]} 1... c5 {[%clk 0:02:54.6]} 2. c4 {[%clk 0:03:02]} 2...
Nc6 {[%clk 0:02:53.9]} 3. b3 {[%clk 0:03:01.4]} 3... Nf6 {[%clk 0:02:51.9]} 4.
Bb2 {[%clk 0:03:02.3]} 4... e6 {[%clk 0:02:53.1]} 5. g3 {[%clk 0:03:02.9]} 5...
Be7 {[%clk 0:02:53.2]} 6. Bg2 {[%clk 0:03:03.8]} 6... O-O {[%clk 0:02:54.6]} 7.
O-O {[%clk 0:03:04.5]} 7... d5 {[%clk 0:02:55.5]} 8. d3 {[%clk 0:02:59]} 8... b6
{[%clk 0:02:49.4]} 9. Nc3 {[%clk 0:02:54.6]} 9... Bb7 {[%clk 0:02:43.8]} 10. Rc1
{[%clk 0:02:51.1]} 10... Rc8 {[%clk 0:02:39.6]} 11. Qc2 {[%clk 0:02:49.3]} 11...
d4 {[%clk 0:02:33.3]} 12. Ne4 {[%clk 0:02:42.1]} 12... Nxe4 {[%clk 0:02:32]} 13.
dxe4 {[%clk 0:02:42.9]} 13... Nb4 {[%clk 0:02:31.2]} 14. Qb1 {[%clk 0:02:43.1]}
14... d3 {[%clk 0:02:32.3]} 15. exd3 {[%clk 0:02:35.4]} 15... Nxd3 {[%clk
0:02:32.5]} 16. Rcd1 {[%clk 0:02:22.3]} 16... Bxe4 {[%clk 0:02:27.6]} 17. Ne5
{[%clk 0:02:14.5]} 17... Nxe5 {[%clk 0:01:46.6]} 18. Bxe4 {[%clk 0:01:33.7]}
18... Qc7 {[%clk 0:01:37.3]} 19. Bxh7+ {[%clk 0:01:33.8]} 19... Kh8 {[%clk
0:01:37.7]} 20. Be4 {[%clk 0:01:32.5]} 20... Bf6 {[%clk 0:01:32.9]} 21. Bg2
{[%clk 0:01:31]} 21... Rcd8 {[%clk 0:01:26.4]} 22. Qe4 {[%clk 0:01:13.7]} 22...
Kg8 {[%clk 0:01:03.4]} 23. Bc1 {[%clk 0:01:05.6]} 23... Ng6 {[%clk 0:00:51.9]}
24. h4 {[%clk 0:01:03.8]} 24... Bd4 {[%clk 0:00:40.7]} 25. h5 {[%clk 0:00:51.4]}
25... Ne7 {[%clk 0:00:40.8]} 26. Qg4 {[%clk 0:00:46.2]} 26... Nf5 {[%clk
0:00:38.9]} 27. h6 {[%clk 0:00:46.5]} 27... g6 {[%clk 0:00:26.7]} 28. Be4 {[%clk
0:00:34.9]} 28... Qxg3+ {[%clk 0:00:24.7]} 29. Qxg3 {[%clk 0:00:29.6]} 29...
Nxg3 {[%clk 0:00:24.9]} 30. Bg5 {[%clk 0:00:07.2]} 30... Nxe4 {[%clk 0:00:18.4]}
31. Bxd8 {[%clk 0:00:07.9]} 31... Rxd8 {[%clk 0:00:20]} 32. Kg2 {[%clk
0:00:09.4]} 32... Kh7 {[%clk 0:00:20.5]} 33. f3 {[%clk 0:00:09.1]} 33... Nc3
{[%clk 0:00:20.8]} 34. Rd2 {[%clk 0:00:08.7]} 34... e5 {[%clk 0:00:21.4]} 35.
Rc1 {[%clk 0:00:08.8]} 35... f5 {[%clk 0:00:22.6]} 36. Rxc3 {[%clk 0:00:09.5]}
36... Kxh6 {[%clk 0:00:21.5]} 37. Rc1 {[%clk 0:00:09.2]} 37... Kg5 {[%clk
0:00:22.5]} 38. Rh1 {[%clk 0:00:09.7]} 38... e4 {[%clk 0:00:21.9]} 39. Re2
{[%clk 0:00:09.7]} 39... e3 {[%clk 0:00:20.1]} 40. Rh7 {[%clk 0:00:10.4]} 40...
a6 {[%clk 0:00:19.8]} 41. Rb7 {[%clk 0:00:10.8]} 41... Rd6 {[%clk 0:00:20]} 42.
Ra7 {[%clk 0:00:11.6]} 42... a5 {[%clk 0:00:21.3]} 43. Re7 {[%clk 0:00:12.1]}
43... Kf4 {[%clk 0:00:22.2]} 44. Re8 {[%clk 0:00:12]} 44... g5 {[%clk
0:00:23.4]} 45. Rf8 {[%clk 0:00:12]} 45... Be5 {[%clk 0:00:22.7]} 46. Re8 {[%clk
0:00:11.9]} 46... Rd2 {[%clk 0:00:22.2]} 47. Kf1 {[%clk 0:00:12.4]} 47... Kxf3
{[%clk 0:00:22.4]} 48. Rxe3+ {[%clk 0:00:10.4]} 48... Kxe3 {[%clk 0:00:22.5]}
49. Rxe5+ {[%clk 0:00:12.3]} 49... Kf4 {[%clk 0:00:23.1]} 50. Re6 {[%clk
0:00:13.4]} 50... Rxa2 {[%clk 0:00:23.7]} 51. Rxb6 {[%clk 0:00:15]} 51... Kf3
{[%clk 0:00:24.9]} 52. Ke1 {[%clk 0:00:14]} 52... g4 {[%clk 0:00:26.2]} 53. Rb5
{[%clk 0:00:14.2]} 53... g3 {[%clk 0:00:27.3]} 54. Rxc5 {[%clk 0:00:15.7]} 54...
f4 {[%clk 0:00:28]} 55. Rg5 {[%clk 0:00:16.7]} 55... g2 {[%clk 0:00:28.7]} 56.
Kd1 {[%clk 0:00:17]} 56... Kf2 {[%clk 0:00:26.4]} 57. c5 {[%clk 0:00:17.5]}
57... Ke3 {[%clk 0:00:23.1]} 58. c6 {[%clk 0:00:16.6]} 58... g1=Q+ {[%clk
0:00:23.8]} 59. Rxg1 {[%clk 0:00:16.5]} 59... Ra1+ {[%clk 0:00:25.3]} 60. Kc2
{[%clk 0:00:17.8]} 60... Rxg1 {[%clk 0:00:27.2]} 61. Kc3 {[%clk 0:00:18.5]}
61... Rg6 {[%clk 0:00:27.6]} 0-1

[Event "*** Titled Tuesday 3|2 Blitz"]
[Site "Chess.com"]
[Date "2016.09.06"]
[Round "6"]
[White "putinwarrior"]
[Black "Maitreia"]
[Result "1/2-1/2"]
[WhiteElo "2360"]
[BlackElo "2401"]
[TimeControl "180+2"]
[EndTime "12:17:51 PDT"]
[Termination "Game drawn by repetition"]

1. d4 {[%clk 0:02:03.3]} 1... Nf6 {[%clk 0:02:59.3]} 2. Bg5 {[%clk 0:02:03.6]}
2... Ne4 {[%clk 0:02:58.1]} 3. Bf4 {[%clk 0:02:03.1]} 3... c5 {[%clk 0:02:53.1]}
4. f3 {[%clk 0:01:25.1]} 4... Nf6 {[%clk 0:02:53.3]} 5. dxc5 {[%clk 0:01:24.1]}
5... Qa5+ {[%clk 0:02:53.9]} 6. Qd2 {[%clk 0:01:25]} 6... Qxc5 {[%clk
0:02:54.7]} 7. e4 {[%clk 0:01:25.3]} 7... Nc6 {[%clk 0:02:52.2]} 8. Nc3 {[%clk
0:01:26.6]} 8... d6 {[%clk 0:02:47.3]} 9. O-O-O {[%clk 0:01:18.4]} 9... Be6
{[%clk 0:02:47.7]} 10. Nge2 {[%clk 0:01:18.5]} 10... g6 {[%clk 0:02:44.9]} 11.
Nd4 {[%clk 0:01:18.4]} 11... Nxd4 {[%clk 0:02:42.1]} 12. Qxd4 {[%clk 0:01:20]}
12... Qxd4 {[%clk 0:02:43.6]} 13. Rxd4 {[%clk 0:01:21.4]} 13... Bg7 {[%clk
0:02:45.5]} 14. Rb4 {[%clk 0:01:19.3]} 14... b6 {[%clk 0:02:42.6]} 15. Bb5+
{[%clk 0:01:06.7]} 15... Nd7 {[%clk 0:02:38.4]} 16. Nd5 {[%clk 0:01:06.6]} 16...
Bxd5 {[%clk 0:02:35.2]} 17. exd5 {[%clk 0:01:07.3]} 17... Rd8 {[%clk 0:02:25.3]}
18. Re1 {[%clk 0:01:02.5]} 18... Kf8 {[%clk 0:02:03.2]} 19. Ra4 {[%clk
0:00:52.4]} 19... a5 {[%clk 0:02:02.6]} 20. b4 {[%clk 0:00:50.4]} 20... h5
{[%clk 0:01:46.5]} 21. Bxd7 {[%clk 0:00:40.5]} 21... Rxd7 {[%clk 0:01:48.4]} 22.
bxa5 {[%clk 0:00:41.8]} 22... Bc3 {[%clk 0:01:33.6]} 23. Bd2 {[%clk 0:00:41.1]}
23... Bxa5 {[%clk 0:01:26.2]} 24. Bxa5 {[%clk 0:00:39.1]} 24... bxa5 {[%clk
0:01:25.9]} 25. Rxa5 {[%clk 0:00:39.9]} 25... Kg7 {[%clk 0:01:26.7]} 26. Re3
{[%clk 0:00:37]} 26... Rc8 {[%clk 0:01:24.3]} 27. Kd2 {[%clk 0:00:33.8]} 27...
Rdc7 {[%clk 0:01:24]} 28. c3 {[%clk 0:00:35.4]} 28... Kf6 {[%clk 0:01:23.5]} 29.
Ra4 {[%clk 0:00:35.2]} 29... g5 {[%clk 0:01:24.8]} 30. h4 {[%clk 0:00:35.3]}
30... gxh4 {[%clk 0:01:22.6]} 31. Rxh4 {[%clk 0:00:37.2]} 31... Rg8 {[%clk
0:01:21.6]} 32. Re2 {[%clk 0:00:33.5]} 32... Kg5 {[%clk 0:01:18.6]} 33. Rhe4
{[%clk 0:00:33]} 33... Ra8 {[%clk 0:01:11.9]} 34. a4 {[%clk 0:00:27]} 34... Kf6
{[%clk 0:01:07.6]} 35. Rf4+ {[%clk 0:00:27.7]} 35... Kg6 {[%clk 0:01:06.9]} 36.
Ree4 {[%clk 0:00:28.6]} 36... Rac8 {[%clk 0:00:56.5]} 37. Re3 {[%clk 0:00:27.8]}
37... Rb8 {[%clk 0:00:48.5]} 38. Kc2 {[%clk 0:00:28.5]} 38... Rcb7 {[%clk
0:00:47.6]} 39. g3 {[%clk 0:00:25.3]} 39... Rb2+ {[%clk 0:00:47.3]} 40. Kd3
{[%clk 0:00:26.6]} 40... R8b7 {[%clk 0:00:49]} 41. Rh4 {[%clk 0:00:23.7]} 41...
Ra2 {[%clk 0:00:46.2]} 42. g4 {[%clk 0:00:24]} 42... hxg4 {[%clk 0:00:37.5]} 43.
Rxg4+ {[%clk 0:00:25.9]} 43... Kf5 {[%clk 0:00:37]} 44. Ree4 {[%clk 0:00:26.4]}
44... Rbb2 {[%clk 0:00:17.9]} 45. Rxe7 {[%clk 0:00:26.9]} 45... Rd2+ {[%clk
0:00:18.1]} 46. Kc4 {[%clk 0:00:26.4]} 46... Rxa4+ {[%clk 0:00:14.1]} 47. Kb3
{[%clk 0:00:27.6]} 47... Rxg4 {[%clk 0:00:14]} 48. fxg4+ {[%clk 0:00:29.2]}
48... Kf6 {[%clk 0:00:12.6]} 49. Re4 {[%clk 0:00:25.3]} 49... Rxd5 {[%clk
0:00:13.3]} 50. Kc4 {[%clk 0:00:25.5]} 50... Ra5 {[%clk 0:00:12.1]} 51. Rd4
{[%clk 0:00:24.4]} 51... Ke5 {[%clk 0:00:11.8]} 52. Kb4 {[%clk 0:00:24.7]} 52...
Rc5 {[%clk 0:00:11.7]} 53. Rd2 {[%clk 0:00:24.7]} 53... Rd5 {[%clk 0:00:10.5]}
54. Rf2 {[%clk 0:00:25.6]} 54... Ke6 {[%clk 0:00:10]} 55. c4 {[%clk 0:00:26.5]}
55... Rd4 {[%clk 0:00:10.1]} 56. g5 {[%clk 0:00:26.9]} 56... d5 {[%clk
0:00:11.3]} 57. Rf6+ {[%clk 0:00:26.4]} 57... Ke7 {[%clk 0:00:12.8]} 58. Kc5
{[%clk 0:00:27.3]} 58... Rxc4+ {[%clk 0:00:12.4]} 59. Kxd5 {[%clk 0:00:28.9]}
59... Rg4 {[%clk 0:00:14.3]} 60. Rf5 {[%clk 0:00:30.3]} 60... Ra4 {[%clk
0:00:11.4]} 61. Re5+ {[%clk 0:00:30.6]} 61... Kf8 {[%clk 0:00:12.6]} 62. Rf5
{[%clk 0:00:30]} 62... Kg7 {[%clk 0:00:13.4]} 63. Ke5 {[%clk 0:00:30.3]} 63...
Rb4 {[%clk 0:00:10.7]} 64. Kd5 {[%clk 0:00:29.9]} 64... Kg6 {[%clk 0:00:10.6]}
65. Rf6+ {[%clk 0:00:30.7]} 65... Kg7 {[%clk 0:00:11.3]} 66. Rf5 {[%clk
0:00:30.7]} 66... Ra4 {[%clk 0:00:12.5]} 67. Ke5 {[%clk 0:00:31.1]} 67... Rb4
{[%clk 0:00:14.1]} 68. Kd5 {[%clk 0:00:31.3]} 1/2-1/2